bitfinex/quotes_ETHUSD_20241223
["timestamp","ask_amount","ask_price","bid_price","bid_amount"]
[1734975664372,0.03728875,3352.7,3351.4,1.24591117]
[1734975664373,2.98305,3352.3,3351.9,0.05829197]
[1734975664688,3.9475,3352.4,3351.9,0.05829197]
[1734975664971,3.9475,3352.4,3352.0,0.05823873]
[1734975665355,3.9475,3352.4,3351.4,2.98379]
[1734975665560,0.09343172,3352.3,3352.1,0.05818548]
[1734975665727,3.13072364,3352.3,3351.3,0.8923]
[1734975665925,0.13072364,3352.3,3352.2,0.05813224]
[1734975666235,0.9475,3351.3,3350.6,5.1723]
[1734975666672,3.0,3351.5,3350.7,0.05699351]
[1734975667474,0.9475,3351.7,3350.7,0.05699351]
[1734975667475,3.77453587,3351.4,3350.7,0.05699351]
[1734975667771,3.0,3351.3,3350.7,0.05699351]
[1734975668083,2.78973266,3351.0,3350.7,0.05699351]
[1734975668287,2.98436,3350.8,3350.7,0.05699351]
[1734975668439,3.0,3350.7,3349.4,2.13821117]
[1734975668642,0.03731672,3350.6,3349.4,2.13821117]
[1734975668844,0.03731672,3350.6,3349.5,0.05763317]
[1734975669380,0.09347971,3350.8,3349.5,3.04307317]
[1734975669582,0.9475,3350.9,3349.6,0.51812843]
[1734975669782,0.9475,3351.2,3350.1,0.8923]
[1734975670082,4.21099009,3351.4,3350.2,2.98489]
[1734975670083,1.22713009,3351.4,3350.2,2.98489]
[1734975670284,1.22713009,3351.4,3350.2,0.55]
[1734975670444,1.22713009,3351.4,3350.4,2.98471]
[1734975670846,1.22713009,3351.4,3350.5,0.05941409]
[1734975671053,0.03730577,3351.5,3350.5,0.05941409]
[1734975671467,3.02104577,3351.5,3350.5,0.3638265]
[1734975671686,0.9475,3351.7,3350.5,0.3638265]
[1734975671882,0.9475,3351.7,3350.5,0.05941409]
[1734975672201,0.9475,3351.7,3350.3,0.55]
[1734975672506,0.03730134,3351.6,3350.5,2.98457]
[1734975672668,0.03730134,3351.6,3350.6,0.0593608]
[1734975672877,0.9475,3351.7,3350.6,0.0593608]
[1734975673081,0.9475,3351.7,3350.7,0.30439308]
[1734975673403,0.9475,3351.7,3350.8,0.05925423]
[1734975673894,0.9556,3352.1,3350.9,0.905]
[1734975674199,0.9556,3352.1,3351.0,2.98414]
[1734975674394,0.9556,3352.1,3351.1,0.388914]
[1734975674573,0.03729701,3352.0,3351.1,0.0609358]
[1734975674768,2.98382,3351.5,3351.1,0.0609358]
[1734975674972,2.82703908,3351.4,3350.0,0.8724]
[1734975675170,2.98461,3350.6,3349.7,4.28]
[1734975675398,0.8928,3350.4,3350.1,0.06143108]
[1734975675594,0.03731682,3350.3,3349.7,4.28]
[1734975675960,0.03731682,3350.3,3349.8,0.06159101]
[1734975675961,2.98493,3350.2,3349.8,0.06159101]
[1734975676185,0.03731766,3350.1,3349.7,4.28]
[1734975676589,0.70777467,3350.3,3349.8,0.06159101]
[1734975677000,0.70777467,3350.3,3349.7,4.28]
[1734975677204,0.45852647,3350.2,3349.7,4.28]
[1734975677804,0.49584418,3350.2,3349.7,4.28]
[1734975678006,0.49584418,3350.2,3349.8,0.06159101]
[1734975678393,0.49584418,3350.2,3349.7,4.28]
[1734975678705,0.9279,3350.1,3349.8,0.05950317]
[1734975678860,3.9279,3350.1,3349.7,4.28]
[1734975679066,0.9279,3350.1,3349.0,0.0735914]
[1734975679302,0.9279,3350.1,3349.1,0.05987645]
[1734975679503,0.9279,3350.1,3349.3,2.98567]
[1734975679678,0.9279,3350.1,3349.4,0.3642711]
[1734975679874,0.9279,3350.1,3349.4,3.3498711]
[1734975680077,0.96521733,3350.8,3349.5,0.9207]
[1734975680278,0.9279,3350.8,3349.5,0.9207]
[1734975680494,0.9279,3350.8,3349.9,2.98512]
[1734975680665,0.03731056,3350.7,3350.0,0.05939655]
[1734975680870,0.03731056,3350.7,3349.7,2.98533]
[1734975681070,0.03731078,3350.7,3349.3,2.98563]
[1734975681386,0.03731078,3350.7,3349.1,0.9505]
[1734975681387,3.02178078,3350.7,3349.1,0.9505]
[1734975681701,0.9279,3350.8,3349.5,2.98549]
[1734975681909,0.9279,3350.8,3349.6,0.06069043]
[1734975682284,0.03731312,3350.7,3349.6,0.06069043]
[1734975682478,0.9279,3350.8,3349.6,3.04604043]
[1734975682704,0.03731312,3350.7,3349.6,3.04604043]
[1734975682906,0.9279,3350.8,3349.7,0.8987]
[1734975683210,0.9279,3350.8,3350.0,2.98502]
[1734975683373,0.9279,3350.8,3349.8,0.06058917]
[1734975683706,0.9279,3350.8,3349.7,0.8987]
[1734975683933,0.9279,3350.8,3349.9,2.98516]
[1734975684129,0.9279,3350.8,3350.0,0.06043415]
[1734975684315,0.9279,3350.8,3350.1,2.98489]
[1734975684627,0.9279,3350.8,3350.2,0.06024688]
[1734975685016,0.9279,3350.8,3349.9,2.98514]
[1734975685234,0.9279,3350.8,3350.3,0.06019358]
[1734975685440,0.9279,3350.8,3349.9,2.98514]
[1734975685591,2.98402,3351.2,3350.4,0.98154028]
[1734975685592,0.8971,3351.2,3350.4,0.98154028]
[1734975685787,0.8971,3352.0,3350.4,0.9214]
[1734975685994,0.8971,3352.0,3350.5,0.06009774]
[1734975686432,0.8971,3352.0,3351.1,2.98409]
[1734975686630,0.8971,3352.0,3351.1,3.282499]
[1734975686937,0.03729572,3351.9,3351.2,0.05957422]
[1734975687433,0.8971,3352.0,3351.2,0.05957422]
[1734975687850,0.8971,3352.0,3351.2,2.98398]
[1734975688052,0.8971,3352.0,3351.3,0.05952095]
[1734975688053,0.03729652,3351.9,3351.3,0.05952095]
[1734975688238,2.98357,3351.7,3351.3,0.05952095]
[1734975688444,0.9354,3351.5,3350.1,5.2366]
[1734975688753,0.97270577,3351.5,3350.2,0.05967169]
[1734975688940,0.9354,3351.5,3350.2,0.05967169]
[1734975689248,0.09345318,3351.4,3351.1,2.98406]
[1734975689455,0.09345318,3351.4,3351.2,2.98395]
[1734975689612,0.09345318,3351.4,3351.3,0.298395]
[1734975689951,2.98334,3352.0,3351.3,0.05916617]
[1734975690163,0.03730142,3351.9,3351.3,0.05916617]
[1734975690369,0.03730142,3351.9,3350.7,2.98439]
[1734975690370,0.13075634,3351.9,3350.7,2.98439]
[1734975690731,0.09345492,3351.8,3350.8,0.05943254]
[1734975690932,0.03730153,3351.7,3350.8,0.05943254]
[1734975691175,0.68383782,3351.8,3350.8,0.05943254]
[1734975691471,0.09345492,3351.6,3350.8,3.04378254]
[1734975691835,0.8947,3351.5,3350.8,0.05943254]
[1734975692157,0.8947,3351.5,3350.1,4.28]
[1734975692158,0.98815492,3351.5,3350.6,2.98453]
[1734975692331,0.98815492,3351.5,3350.6,4.242883]
[1734975692530,0.09345492,3351.4,3350.7,0.05943746]
[1734975693167,0.09345492,3351.4,3351.0,2.98418]
[1734975693373,0.09345492,3351.4,3351.2,2.98396]
[1734975693732,0.09345492,3351.8,3351.3,0.05852643]
[1734975693934,0.09345492,3351.8,3351.2,2.98396]
[1734975694164,0.1307522,3351.8,3351.3,0.05852643]
[1734975694365,0.09345492,3351.8,3351.3,0.05852643]
[1734975694532,0.09345492,3351.7,3350.7,3.53445]
[1734975694729,0.09345492,3351.7,3351.3,2.98386]
[1734975694998,0.09345492,3351.7,3351.6,2.98364]
[1734975695188,0.9102,3352.3,3351.6,2.98364]
[1734975695390,0.9102,3352.3,3351.6,0.05825916]
[1734975695553,0.03729227,3352.2,3351.6,0.05825916]
[1734975695747,0.03729227,3352.2,3351.3,2.98387]
[1734975695748,0.4671568,3352.2,3351.3,2.98387]
[1734975695990,0.4671568,3352.2,3351.4,0.05836568]
[1734975696290,2.98284,3352.6,3351.6,0.9559]
[1734975696291,0.09343431,3352.1,3351.6,0.9559]
[1734975696653,0.09343431,3352.1,3352.0,2.98329]
[1734975697158,0.03728421,3353.1,3352.0,2.98329]
[1734975697159,0.09343431,3352.5,3352.0,0.05778825]
[1734975697567,1.02373431,3352.4,3351.5,2.98373]
[1734975697764,0.09343431,3352.4,3351.3,0.55]
[1734975697970,0.09343431,3352.3,3351.6,0.05798514]
[1734975698275,0.09343431,3352.3,3351.4,0.62956662]
[1734975698446,0.09343431,3352.3,3351.9,2.98334]
[1734975698651,0.09343431,3352.2,3351.9,2.98334]
[1734975698865,0.09343431,3352.2,3352.0,0.05762173]
[1734975699266,0.9303,3352.8,3351.9,2.98334]
[1734975699588,0.9303,3352.8,3352.0,3.04087173]
[1734975699774,0.13071121,3352.7,3352.0,0.05762173]
[1734975699980,2.78973266,3352.1,3352.0,0.05762173]
[1734975700181,0.8759,3352.0,3351.1,4.28]
[1734975700351,3.02068943,3351.9,3351.1,4.28]
[1734975700690,3.02068943,3351.9,3351.2,0.05608314]
[1734975700691,0.03729943,3351.9,3351.2,0.05608314]
[1734975700990,0.0934237,3351.8,3351.1,7.26409]
[1734975701164,0.0934237,3351.8,3351.1,4.28]
[1734975701362,0.0934237,3351.8,3351.2,0.05608314]
[1734975701571,0.0934237,3351.9,3351.2,3.04008314]
[1734975701890,0.0934237,3351.9,3351.2,0.05608314]
[1734975702289,0.0934237,3351.9,3351.3,2.98389]
[1734975702611,0.0934237,3351.9,3351.4,0.05597661]
[1734975702978,0.0934237,3351.9,3351.2,0.8715]
[1734975703175,0.0934237,3351.9,3351.8,2.98347]
[1734975703503,0.0934237,3351.9,3351.5,0.05592335]
[1734975703708,0.0934237,3351.9,3351.8,0.05553251]
[1734975703862,0.0934237,3352.3,3351.6,2.98362]
[1734975704065,0.13071497,3352.3,3351.8,0.05553251]
[1734975704262,0.13071497,3352.3,3351.7,0.05558577]
[1734975704605,0.0934237,3352.2,3351.8,0.05553251]
[1734975704785,0.0934237,3352.2,3351.5,2.98368]
[1734975704991,0.0934237,3352.2,3351.9,0.05547927]
[1734975705190,0.0934237,3352.2,3351.8,2.98345]
[1734975705406,0.0934237,3352.2,3351.6,0.3797235]
[1734975705407,0.0934237,3352.2,3352.0,0.05542602]
[1734975705585,0.0372913,3352.3,3351.9,0.05547927]
[1734975705906,0.8828,3352.4,3352.1,0.05537278]
[1734975706075,0.8828,3352.4,3351.3,0.813555]
[1734975706076,0.03729128,3352.3,3352.0,0.05542602]
[1734975706280,0.8828,3352.4,3352.2,0.05531954]
[1734975706477,0.0372911,3352.8,3352.1,0.05537278]
[1734975706682,0.0372911,3352.8,3352.3,0.0552663]
[1734975706683,0.7057717,3352.8,3352.3,0.0552663]
[1734975706881,0.03728832,3352.8,3351.5,2.98368]
[1734975707093,0.03728832,3352.8,3351.3,0.813555]
[1734975707279,0.03728832,3352.8,3351.6,0.05563902]
[1734975707280,0.8753,3352.4,3351.6,0.05563902]
[1734975707604,2.98319,3352.2,3351.1,4.28]
[1734975707815,0.03729671,3352.1,3351.1,4.28]
[1734975707965,2.98319,3352.2,3351.2,0.05585208]
[1734975708286,0.0934289,3352.0,3351.2,3.03982208]
[1734975708461,0.0934289,3352.0,3351.2,0.05585208]
[1734975708668,0.0934289,3352.0,3351.5,2.98366]
[1734975708925,0.0934289,3352.0,3351.7,2.98353]
[1734975709100,0.0934289,3352.0,3351.8,2.98341]
[1734975709402,1.22713009,3352.7,3351.8,0.05570441]
[1734975709403,0.0934289,3352.3,3351.8,0.05570441]
[1734975709921,0.9709289,3352.2,3351.5,4.28]
[1734975710083,0.9709289,3352.2,3351.9,0.05557058]
[1734975710084,3.92649,3352.0,3351.9,0.05557058]
[1734975710289,2.98364,3351.6,3351.5,4.28]
[1734975710503,4.523542,3351.6,3351.5,4.28]
[1734975710693,7.91726543,3351.6,3351.5,4.28]
[1734975710893,7.6169709,3351.6,3351.5,4.28]
[1734975711273,4.6333309,3351.6,3351.5,4.28]
[1734975711620,1.6333309,3351.6,3351.5,4.28]
[1734975712618,1.0302319,3351.6,3351.5,4.28]
[1734975713702,7.38259533,3351.6,3351.5,4.28]
[1734975714032,7.0138719,3351.6,3351.5,4.28]
[1734975715738,9.54639755,3351.6,3351.5,4.28]
[1734975715937,9.54639755,3351.6,3350.2,2.98489]
[1734975716230,2.98394,3351.3,3350.3,0.05732574]
[1734975716735,7.64690743,3351.5,3350.1,2.98496]
[1734975716932,0.0934289,3351.2,3350.0,2.985]
[1734975717135,0.0934289,3351.2,3350.0,2.69163604]
[1734975717325,0.87120117,3351.2,3350.1,0.05549821]
[1734975717522,0.0934289,3351.1,3350.1,0.05549821]
[1734975717731,0.0934289,3351.1,3350.1,3.04043821]
[1734975717936,0.0934289,3351.0,3350.1,3.04043821]
[1734975718841,0.0934289,3350.9,3350.2,2.98483]
[1734975719043,0.0934289,3350.9,3350.2,3.42060918]
[1734975719245,0.0934289,3350.9,3350.3,0.0553916]
[1734975719538,0.0934289,3351.1,3350.1,0.96]
[1734975719749,0.03730675,3350.9,3350.2,0.0554449]
[1734975720310,2.26612023,3350.8,3350.2,0.0554449]
[1734975720651,2.98461,3350.6,3350.1,0.96]
[1734975720850,0.56611726,3350.5,3350.1,0.96]
[1734975721349,0.9201,3350.4,3350.1,0.96]
[1734975721663,0.0934289,3350.3,3350.1,0.96]
[1734975722156,0.13074187,3350.3,3350.1,0.96]
[1734975722361,3.11554187,3350.3,3350.1,0.96]
[1734975722657,0.9201,3350.4,3350.1,0.96]
[1734975722658,3.46640338,3350.2,3350.1,0.96]
[1734975723014,5.63909471,3350.2,3350.1,0.96]
[1734975724004,6.55919471,3350.2,3350.1,0.96]
[1734975724522,9.55919471,3350.2,3350.1,0.96]
[1734975725261,9.55919471,3350.2,3350.1,0.52431617]
[1734975725494,12.10060947,3350.2,3350.1,6.17e-06]
[1734975725977,3.89107,3349.1,3349.0,0.0735914]
[1734975726177,9.45286833,3349.1,3349.0,0.0735914]
[1734975726775,9.45286833,3349.1,3347.5,1.24591117]
[1734975726776,0.9052,3348.9,3347.5,1.24591117]
[1734975726930,3.0,3349.0,3347.5,1.24591117]
[1734975726931,2.98633,3348.6,3347.5,1.24591117]
[1734975727269,0.9425423,3348.8,3347.6,0.98616301]
[1734975727270,0.9986289,3348.8,3347.6,0.98616301]
[1734975727466,0.9986289,3348.8,3348.0,2.98685]
[1734975727634,0.9986289,3348.8,3348.1,0.298685]
[1734975727869,0.9052,3348.8,3348.1,0.05829682]
[1734975728165,0.9052,3348.8,3347.8,2.98702]
[1734975728402,0.9052,3348.8,3347.9,0.05840357]
[1734975728614,0.9052,3349.1,3347.9,0.05840357]
[1734975728910,2.80131793,3349.6,3348.3,2.98657]
[1734975728911,0.9052,3349.5,3348.3,2.98657]
[1734975729080,0.9052,3349.5,3348.7,2.98622]
[1734975729395,0.9052,3349.5,3348.8,3.04402332]
[1734975729698,0.9052,3349.5,3348.9,2.98605]
[1734975729897,0.9052,3349.5,3349.0,2.98592]
[1734975730133,1.22089308,3349.7,3349.0,3.04373663]
[1734975730283,1.89676814,3349.7,3349.0,0.05781663]
[1734975730489,0.9052,3349.8,3349.0,0.05781663]
[1734975730811,0.9052,3349.8,3349.1,2.98586]
[1734975731125,0.9052,3350.1,3349.2,2.98574]
[1734975731258,0.9052,3350.1,3349.2,3.91484]
[1734975731463,2.80131793,3350.0,3349.3,0.05765663]
[1734975731781,2.98577,3349.3,3348.0,2.98684]
[1734975732111,0.9052,3349.2,3348.3,2.98656]
[1734975732274,0.03732831,3349.1,3348.1,3.91586]
[1734975732601,0.03732831,3349.1,3348.1,0.9291]
[1734975732902,3.02321831,3349.1,3347.8,3.91611]
[1734975733100,2.9861,3348.9,3347.8,0.9291]
[1734975733309,0.48637652,3349.0,3347.8,0.9291]
[1734975733667,0.52371044,3349.0,3347.8,0.9291]
[1734975733859,0.09353469,3348.9,3348.4,2.98649]
[1734975734063,0.09353469,3348.9,3347.8,0.9291]
[1734975734509,0.9052,3349.2,3348.2,2.98666]
[1734975734903,0.9052,3349.2,3348.3,2.98657]
[1734975735107,0.9052,3349.2,3348.4,2.98646]
[1734975735315,0.919,3349.8,3348.7,2.9862]
[1734975735550,0.919,3349.8,3348.7,2.98618]
[1734975735680,0.13083463,3349.7,3348.7,2.98618]
[1734975736336,0.03732299,3349.7,3348.4,0.298646]
[1734975736629,0.919,3349.8,3348.2,0.8859]
[1734975736778,0.919,3349.8,3348.5,2.98641]
[1734975736978,0.919,3349.8,3348.4,8.95]
[1734975736979,0.919,3349.8,3349.0,2.98592]
[1734975737196,0.919,3349.8,3349.1,2.98587]
[1734975737429,0.919,3349.8,3349.2,2.98571]
[1734975737719,0.8978,3350.4,3349.2,0.389481]
[1734975737925,0.8978,3350.4,3349.8,2.9852]
[1734975738133,0.8978,3350.4,3348.7,0.9091]
[1734975738282,2.80131793,3350.9,3348.7,0.9091]
[1734975738283,0.8978,3350.8,3349.1,0.9091]
[1734975738484,0.03731114,3350.7,3349.5,2.98543]
[1734975738722,0.8978,3350.4,3349.0,8.95]
[1734975738981,0.77595287,3350.3,3348.9,0.9091]
[1734975739296,2.80131793,3350.1,3348.9,0.9091]
[1734975739493,0.09348389,3350.3,3349.4,2.98556]
[1734975739698,0.09348389,3350.0,3349.5,2.98549]
[1734975739915,0.09348389,3350.0,3349.5,3.04326563]
[1734975740289,0.09348389,3350.3,3349.5,3.04326563]
[1734975740489,0.09348389,3350.3,3349.5,3.34759219]
[1734975740992,0.03731509,3350.2,3349.5,0.05777563]
[1734975741201,0.03731509,3350.2,3349.3,2.98568]
[1734975741427,0.09348389,3350.1,3349.3,2.98568]
[1734975741818,0.03731508,3350.0,3349.4,0.05778591]
[1734975742018,0.03731508,3350.0,3348.9,2.98601]
[1734975742220,0.34888898,3350.0,3349.5,0.05773259]
[1734975742395,0.09348389,3350.1,3348.5,9.8788]
[1734975742732,0.09348389,3349.9,3349.8,2.9852]
[1734975743105,0.9357,3350.8,3350.2,2.98488]
[1734975743311,0.9357,3350.8,3349.8,0.05756725]
[1734975743523,0.09347539,3350.7,3350.4,2.9847]
[1734975743759,0.09347539,3350.7,3350.5,2.98455]
[1734975743915,0.09347539,3350.7,3350.5,0.05719413]
[1734975744237,0.03730662,3351.2,3350.2,2.98489]
[1734975744393,0.67445846,3351.2,3350.6,0.05692566]
[1734975744595,0.09347311,3351.1,3350.2,2.98489]
[1734975745033,0.09347311,3351.1,3350.3,0.05708554]
[1734975745235,0.09347311,3351.0,3350.3,3.04180554]
[1734975745555,0.09347311,3351.0,3350.3,0.05708554]
[1734975745732,0.09347311,3350.9,3350.7,2.98442]
[1734975745937,0.09347311,3350.9,3350.8,2.98436]
[1734975746150,0.9579,3351.7,3350.8,0.05681909]
[1734975746436,0.03729893,3351.6,3350.8,3.04113909]
[1734975746638,0.13075255,3351.6,3350.8,0.05681909]
[1734975746936,0.9682,3351.5,3350.8,0.05681909]
[1734975747138,0.4231695,3351.4,3350.5,2.9846]
[1734975747325,0.4231695,3351.4,3350.0,2.98499]
[1734975747637,0.4231695,3351.4,3350.5,2.98459]
[1734975747820,0.4231695,3351.4,3349.9,0.8974]
[1734975747821,0.09345362,3351.3,3349.9,0.8974]
[1734975748026,0.09345362,3351.3,3350.7,2.98444]
[1734975748200,0.09345362,3351.3,3350.5,2.98462]
[1734975748399,0.18951328,3351.2,3350.6,0.05425983]
[1734975748619,0.18951328,3351.2,3349.9,3.8825]
[1734975748620,0.18951328,3351.2,3350.3,2.9848]
[1734975748819,0.1522124,3351.2,3350.7,0.05420654]
[1734975749013,0.9682,3351.5,3351.1,2.98406]
[1734975749355,0.8947,3351.8,3350.8,0.97995326]
[1734975749504,0.8947,3351.8,3351.2,3.03792015]
[1734975749831,0.8947,3351.8,3350.8,0.9258]
[1734975749832,0.8947,3351.8,3351.3,0.05388688]
[1734975750001,0.8947,3351.8,3350.9,2.9842]
[1734975750202,0.03729853,3351.7,3351.0,0.0540467]
[1734975750401,0.09345149,3351.7,3351.0,0.0540467]
[1734975750720,0.13075002,3351.7,3351.0,0.0540467]
[1734975751035,0.8947,3351.8,3351.0,0.0540467]
[1734975751036,0.09345149,3351.6,3351.0,0.0540467]
[1734975751359,0.09345149,3351.6,3351.4,2.98379]
[1734975751548,0.09345149,3351.7,3351.0,0.45045137]
[1734975751731,0.09345149,3351.7,3351.6,2.98364]
[1734975751932,0.9046,3352.2,3351.6,2.98364]
[1734975751933,0.09345149,3352.1,3351.6,2.98364]
[1734975752250,0.09345149,3352.1,3351.7,0.05367384]
[1734975752430,0.99138823,3352.7,3351.7,0.05367384]
[1734975752636,3.42441329,3352.6,3351.5,0.9416]
[1734975752963,0.9541,3352.5,3351.8,0.05307816]
[1734975753122,0.9541,3352.5,3351.7,2.98353]
[1734975753304,0.9541,3352.5,3351.1,2.98409]
[1734975753305,0.09343622,3352.4,3351.1,2.98409]
[1734975753509,0.09343622,3352.4,3351.7,2.98352]
[1734975753705,2.98328,3352.1,3351.2,0.05323666]
[1734975753927,0.71042507,3352.0,3351.8,0.0529171]
[1734975754145,0.9094,3351.9,3350.8,2.98436]
[1734975754347,0.03729834,3351.8,3350.8,2.98436]
[1734975754552,0.13073456,3351.8,3350.9,0.05339649]
[1734975754917,0.03729834,3351.8,3350.9,0.05339649]
[1734975755117,0.16198271,3351.7,3350.9,3.03764649]
[1734975755410,0.16198271,3351.7,3351.0,0.05334321]
[1734975755609,0.16198271,3351.7,3351.0,2.98417]
[1734975755809,0.16198271,3351.7,3351.1,0.05332751]
[1734975756022,0.16198271,3351.7,3351.0,2.98416]
[1734975756350,0.9094,3351.9,3351.0,2.98416]
[1734975756540,0.9094,3351.9,3351.1,0.0533973]
[1734975757445,0.03729545,3351.8,3351.1,2.98408]
[1734975757646,0.9094,3351.9,3351.2,0.05334403]
[1734975757824,0.03729837,3351.8,3351.2,0.05334403]
[1734975758025,0.39300984,3351.7,3350.8,2.98435]
[1734975758225,0.03729837,3351.6,3350.8,2.98435]
[1734975758553,0.03729837,3351.6,3350.2,11.93485]
[1734975758711,0.03729837,3351.6,3350.9,0.05289699]
[1734975758918,0.03729837,3351.6,3350.6,2.98451]
[1734975759153,0.30208584,3351.5,3351.0,0.05284371]
[1734975759313,0.30208584,3351.5,3350.8,2.98434]
[1734975759652,3.89278,3351.9,3350.8,2.98434]
[1734975759826,3.89278,3351.9,3350.9,0.05296141]
[1734975760022,0.9094,3351.9,3351.0,2.98415]
[1734975760352,0.09345732,3351.8,3351.0,3.03705813]
[1734975760535,0.09345732,3351.8,3351.3,2.98385]
[1734975760734,0.09345732,3351.8,3351.3,0.30367581]
[1734975760941,0.9726,3352.3,3351.4,0.05267358]
[1734975761124,0.9726,3352.3,3351.7,2.98354]
[1734975761555,0.9726,3352.3,3351.8,0.05240686]
[1734975761756,0.03729149,3352.2,3351.8,0.05240686]
[1734975761959,0.8923,3352.0,3351.8,0.05240686]
[1734975762118,2.9836,3351.7,3350.6,2.98446]
[1734975762454,2.9836,3351.7,3350.0,8.95]
[1734975762455,3.90914,3351.5,3350.7,0.05284788]
[1734975762748,0.09346759,3351.4,3350.5,2.98462]
[1734975762960,0.09346759,3351.4,3350.8,3.03714459]
[1734975763163,0.09346759,3351.4,3350.6,2.98454]
[1734975763335,0.09346759,3351.4,3350.9,0.05285941]
[1734975763536,0.43045474,3351.4,3350.6,2.98454]
[1734975763741,3.88989,3351.1,3351.0,0.05280613]
[1734975763937,0.9058,3350.9,3349.3,2.98563]
[1734975764146,2.98472,3350.4,3349.3,2.98563]
[1734975764367,0.03731428,3350.3,3349.4,0.05383613]
[1734975764665,3.98362286,3350.8,3349.4,0.05383613]
[1734975764836,0.69836229,3350.7,3349.6,2.98537]
[1734975765389,0.9058,3350.8,3349.7,0.05412731]
[1734975765578,0.09348178,3350.6,3349.7,3.03945731]
[1734975765950,0.09348178,3350.6,3349.7,0.05412731]
[1734975766156,0.09348178,3350.6,3349.9,2.98514]
[1734975766388,0.09348178,3350.5,3349.9,2.98514]
[1734975766617,0.09348178,3350.5,3350.0,0.05398349]
[1734975766767,0.09348178,3350.7,3350.0,3.03903349]
[1734975766969,0.48406178,3350.7,3350.0,0.05398349]
[1734975767274,0.03731101,3350.6,3349.6,2.9854]
[1734975767587,0.03731101,3350.6,3350.1,0.05391407]
[1734975767895,0.13080073,3350.6,3349.7,2.98533]
[1734975768052,0.13080073,3350.6,3349.2,3.91991]
[1734975768053,0.8520886,3350.6,3350.2,0.05386076]
[1734975768377,3.07815972,3350.5,3349.4,2.98553]
[1734975768690,0.03731526,3350.4,3349.5,0.05427156]
[1734975769102,0.09348972,3350.3,3349.5,0.05427156]
[1734975769393,0.97441637,3350.2,3348.8,0.9548]
[1734975769596,0.9371,3350.2,3349.6,0.05492719]
[1734975769751,0.40154797,3350.1,3349.3,2.98561]
[1734975769950,0.9371,3350.2,3349.3,2.98561]
[1734975769951,0.9371,3350.2,3349.7,0.05487387]
[1734975770168,0.9371,3350.2,3349.3,2.98561]
[1734975770435,0.09348972,3350.1,3349.3,2.98561]
[1734975770596,0.09348972,3350.1,3349.4,0.05510368]
[1734975771997,0.09348972,3350.1,3349.5,2.98549]
[1734975772377,0.09348972,3350.1,3349.6,0.05501853]
[1734975772586,0.09348972,3350.1,3349.6,3.04040853]
[1734975772907,0.09348972,3350.1,3349.6,0.05501853]
[1734975773093,0.09348972,3350.1,3349.4,2.98559]
[1734975773300,0.13080565,3350.1,3349.7,0.05500282]
[1734975773607,0.13080565,3350.1,3348.8,0.9548]
[1734975773608,2.98509,3350.0,3349.0,2.98595]
[1734975773811,0.03731962,3349.9,3349.1,2.98587]
[1734975773973,0.49878929,3350.0,3349.1,3.0411498]
[1734975774180,0.03731883,3349.9,3349.1,3.0411498]
[1734975774401,0.09348972,3349.8,3349.1,3.0411498]
[1734975775114,0.9245205,3349.7,3349.1,0.0552798]
[1734975775315,0.9245205,3349.7,3348.4,0.9006]
[1734975775517,0.9245205,3349.7,3349.2,0.05532319]
[1734975775518,0.8872,3349.4,3349.2,0.05532319]
[1734975775716,0.8872,3348.8,3347.7,2.98709]
[1734975775915,0.8872,3348.8,3347.8,2.98695]
[1734975776223,0.03733422,3348.7,3347.3,2.42057525]
[1734975776517,3.11706394,3348.7,3347.3,2.42057525]
[1734975776730,0.09348972,3348.7,3347.9,2.98689]
[1734975777108,0.09348972,3348.7,3347.9,2.98694]
[1734975777417,2.98643,3348.5,3347.4,3.70899578]
[1734975777715,0.912,3348.4,3347.4,2.98737]
[1734975777924,0.912,3348.4,3347.3,1.17466408]
[1734975778325,0.912,3348.4,3347.6,2.98715]
[1734975778687,0.912,3348.4,3347.7,2.9871]
[1734975779006,0.912,3348.4,3347.7,2.9371]
[1734975779409,0.912,3348.4,3347.8,2.98696]
[1734975779892,0.912,3348.4,3347.3,1.17466408]
[1734975780091,0.03733836,3348.3,3347.4,2.98738]
[1734975780290,0.39358484,3348.2,3347.3,1.17466408]
[1734975780531,2.98678,3348.1,3347.3,1.17466408]
[1734975780687,3.89866,3348.0,3347.3,1.17466408]
[1734975780891,2.98694,3347.9,3347.3,1.17466408]
[1734975781093,2.98715,3347.7,3347.3,1.17466408]
[1734975781335,3.89919,3347.4,3347.3,1.17466408]
[1734975781996,6.89919,3347.4,3347.3,1.17466408]
[1734975782515,0.9118,3347.4,3347.3,1.17466408]
[1734975784729,0.9118,3347.4,3347.3,1.2293634]
[1734975785437,3.89919,3347.4,3347.3,1.2293634]
[1734975785741,7.589109,3347.4,3347.3,1.17466408]
[1734975786445,7.68270219,3347.4,3347.3,1.17466408]
[1734975787556,7.68270219,3347.4,3347.3,4.08e-06]
[1734975787706,0.9095,3346.8,3346.3,1.19469275]
[1734975788045,3.71081793,3346.4,3346.3,1.19469275]
[1734975788402,9.69909793,3346.4,3346.3,1.19469275]
[1734975789239,10.24909793,3346.4,3346.3,1.19469275]
[1734975790050,10.34272684,3346.4,3346.3,1.19469275]
[1734975790236,10.34272684,3346.4,3346.3,2.75e-06]
[1734975790450,6.94192,3345.8,3345.7,0.1725343]
[1734975790744,0.9531,3345.8,3345.7,0.1725343]
[1734975790945,0.09362891,3346.4,3345.7,0.22450738]
[1734975791118,0.9531,3346.5,3345.7,3.21338738]
[1734975791320,0.99045971,3346.5,3345.8,0.32133874]
[1734975791515,0.9531,3346.5,3346.0,2.98861]
[1734975791715,0.9531,3346.5,3345.9,0.05186619]
[1734975791913,0.9531,3346.5,3345.8,2.98882]
[1734975792128,0.9531,3346.5,3346.0,0.05181275]
[1734975792314,0.974,3346.8,3345.7,0.1725343]
[1734975792535,0.974,3347.3,3346.3,2.98837]
[1734975792738,0.974,3347.9,3346.6,0.9417]
[1734975793147,0.974,3347.9,3345.7,3.29000566]
[1734975793148,2.80131793,3347.2,3346.7,0.05286518]
[1734975793473,1.01135633,3347.1,3346.8,0.05281177]
[1734975793673,1.01135633,3347.1,3345.8,0.9417]
[1734975793875,0.38126743,3347.0,3346.9,0.05302755]
[1734975794277,0.38126743,3347.0,3345.9,2.9887]
[1734975794421,0.38126743,3347.0,3345.8,0.9417]
[1734975794422,0.03735691,3346.9,3345.8,0.9417]